bitfinex/quotes_SOLUSD_20241223
["timestamp","ask_amount","ask_price","bid_price","bid_amount"]
[1734943158371,23.776884,183.52,183.45,8.22304015]
[1734943164160,23.776884,183.5,183.43,8.22304015]
[1734943165879,23.776884,183.5,183.41,0.81761173]
[1734943166183,23.776884,183.5,183.4,21.645]
[1734943166184,27.864184,183.5,183.43,8.22304015]
[1734943166884,23.776884,183.52,183.45,8.22304015]
[1734943167046,1.5163,183.53,183.45,8.22304015]
[1734943167368,1.5163,183.53,183.47,8.22304015]
[1734943170257,8.0961,183.58,183.49,8.22304015]
[1734943170464,16.31914015,183.58,183.49,8.22304015]
[1734943170989,16.31914015,183.58,183.51,8.22304015]
[1734943171185,16.31914015,183.58,183.5,8.22304015]
[1734943171555,8.22304015,183.57,183.5,8.22304015]
[1734943173604,6.5852,183.63,183.56,8.22304015]
[1734943173899,99.00544068,183.66,183.61,8.22304015]
[1734943174269,99.00544068,183.66,183.62,12.8258632]
[1734943185311,99.00544068,183.66,183.64,12.8258632]
[1734943186912,99.00544068,183.66,183.62,12.8258632]
[1734943190221,99.00544068,183.66,183.63,12.8258632]
[1734943191914,99.00544068,183.66,183.57,12.8258632]
[1734943191915,12.8258632,183.64,183.57,12.8258632]
[1734943194238,27.860684,183.65,183.58,8.21177846]
[1734943194239,36.07246246,183.65,183.58,8.21177846]
[1734943196248,36.07246246,183.65,183.56,8.21177846]
[1734943196546,6.0292,183.62,183.56,8.21177846]
[1734943200722,6.0292,183.62,183.57,8.21177846]
[1734943203549,27.860684,183.65,183.59,8.21177846]
[1734943203752,4.0838,183.65,183.59,8.21177846]
[1734943204436,105.03144068,183.66,183.6,8.21177846]
[1734943204619,105.03144068,183.66,183.62,8.21177846]
[1734943206348,99.00544068,183.66,183.64,8.21177846]
[1734943209357,80.07235308,183.66,183.65,8.21177846]
[1734943212858,80.07235308,183.66,183.65,8.33726846]
[1734943213956,80.07235308,183.66,183.65,8.21177846]
[1734943215450,80.07235308,183.66,183.65,8.33726846]
[1734943216445,80.07235308,183.66,183.65,32.93055227]
[1734943216646,77.44307695,183.66,183.65,32.93055227]
[1734943218780,77.44307695,183.66,183.65,169.63055227]
[1734943218954,77.44307695,183.66,183.65,168.81415246]
[1734943219566,0.6715179,183.72,183.68,20.0]
[1734943219773,0.6715179,183.72,183.71,8.21177846]
[1734943221744,0.6715179,183.72,183.71,9.02787022]
[1734943223971,0.6715179,183.72,183.71,11.23340379]
[1734943225073,0.6715179,183.72,183.71,0.81609176]
[1734943225279,0.6715179,183.72,183.69,171.07961384]
[1734943225280,0.6715179,183.72,183.7,0.81611059]
[1734943225479,0.6715179,183.72,183.71,8.21177846]
[1734943229678,0.6715179,183.72,183.71,8.1743061]
[1734943236184,6.5993,183.86,183.75,20.0]
[1734943236361,14.81107846,183.86,183.8,8.21177846]
[1734943237083,6.5993,183.86,183.81,8.21177846]
[1734943237287,6.5993,183.86,183.83,8.21177846]
[1734943237498,6.5993,183.86,183.81,8.21177846]
[1734943237794,6.5993,183.86,183.83,8.21177846]
[1734943238162,0.6715179,183.9,183.85,8.21177846]
[1734943238477,0.6715179,183.9,183.87,8.21177846]
[1734943238974,0.6715179,183.9,183.86,8.21177846]
[1734943239383,0.6715179,183.9,183.87,8.21177846]
[1734943239776,0.6715179,183.9,183.86,9.02737474]
[1734943239974,0.6715179,183.9,183.86,0.81559628]
[1734943240180,8.88329636,183.9,183.83,8.21177846]
[1734943241792,6.1556,183.89,183.83,8.21177846]
[1734943242000,14.36737846,183.89,183.82,8.21177846]
[1734943243766,14.36737846,183.89,183.79,0.81582416]
[1734943243962,0.6715179,183.9,183.84,8.21177846]
[1734943244392,8.88329636,183.9,183.83,8.21177846]
[1734943245400,8.88329636,183.9,183.82,8.21177846]
[1734943246312,8.88329636,183.9,183.83,8.21177846]
[1734943246803,8.21177846,183.89,183.79,0.81582416]
[1734943247002,8.21177846,183.89,183.82,8.21177846]
[1734943247386,8.88329636,183.9,183.82,8.21177846]
[1734943247589,8.88329636,183.9,183.83,8.21177846]
[1734943248807,8.21177846,183.89,183.83,8.21177846]
[1734943249104,16.12387846,183.87,183.8,8.21177846]
[1734943249683,7.9121,183.87,183.81,8.21177846]
[1734943250388,7.9121,183.87,183.82,8.21177846]
[1734943251869,20.20297846,183.87,183.77,0.8159144]
[1734943252075,8.21177846,183.85,183.78,8.21177846]
[1734943252275,8.21177846,183.84,183.73,1.5179]
[1734943252504,8.21177846,183.84,183.77,8.21177846]
[1734943252705,8.21177846,183.83,183.69,0.81613402]
[1734943252902,8.21177846,183.83,183.75,8.21177846]
[1734943253801,8.21177846,183.81,183.69,0.81613402]
[1734943254008,8.21177846,183.81,183.74,8.21177846]
[1734943254629,8.21177846,183.82,183.75,8.21177846]
[1734943255615,8.21177846,183.78,183.68,0.81619587]
[1734943255820,8.21177846,183.77,183.69,8.21177846]
[1734943256211,8.21177846,183.76,183.69,8.21177846]
[1734943256523,1.5217,183.79,183.66,2.18968235]
[1734943256524,23.776884,183.78,183.66,8.21177846]
[1734943256736,1.5217,183.7,183.62,16.88455868]
[1734943257029,1.5217,183.7,183.61,0.81653782]
[1734943257030,14.46147846,183.69,183.61,8.21177846]
[1734943257195,8.21177846,183.68,183.61,8.21177846]
[1734943257392,8.21177846,183.67,183.6,8.44227934]
[1734943257627,8.21177846,183.66,183.6,8.44227934]
[1734943257825,8.21177846,183.66,183.59,8.21177846]
[1734943258217,12.82854246,183.66,183.59,12.82854246]
[1734943258405,12.82854246,183.65,183.58,12.82854246]
[1734943258608,12.82854246,183.65,183.57,12.82854246]
[1734943259520,12.82854246,183.64,183.57,12.82854246]
[1734943259821,12.82854246,183.63,183.56,12.82854246]
[1734943260320,12.82854246,183.64,183.56,12.82854246]
[1734943260534,12.82854246,183.63,183.56,12.82854246]
[1734943261038,12.82854246,183.64,183.57,12.82854246]
[1734943261245,12.82854246,183.64,183.56,12.82854246]
[1734943261736,12.82854246,183.63,183.56,12.82854246]
[1734943262843,19.07824246,183.69,183.54,12.82854246]
[1734943262844,6.4819,183.61,183.54,12.82854246]
[1734943263547,6.4819,183.61,183.56,12.82854246]
[1734943263836,6.4819,183.61,183.54,12.82854246]
[1734943264042,20.83384246,183.61,183.53,12.82854246]
[1734943264339,20.83384246,183.61,183.54,12.82854246]
[1734943266338,8.0053,183.61,183.55,12.82854246]
[1734943271051,8.0053,183.61,183.53,12.82854246]
[1734943271052,12.82854246,183.59,183.53,12.82854246]
[1734943271248,12.82854246,183.54,183.47,12.82854246]
[1734943271543,19.22814246,183.53,183.46,12.82854246]
[1734943271737,19.22814246,183.53,183.44,12.82854246]
[1734943271738,12.82854246,183.51,183.44,12.82854246]
[1734943271933,1.5666,183.52,183.43,12.82854246]
[1734943271934,12.82854246,183.5,183.43,12.82854246]
[1734943272136,12.82854246,183.48,183.41,12.82854246]
[1734943272345,12.82854246,183.46,183.39,12.82854246]
[1734943272552,12.82854246,183.46,183.38,12.82854246]
[1734943272844,12.82854246,183.46,183.39,12.82854246]
[1734943274855,6.091,183.44,183.35,0.81770212]
[1734943275150,12.82854246,183.43,183.36,12.82854246]
[1734943275452,12.82854246,183.43,183.35,12.82854246]
[1734943275662,6.091,183.44,183.35,12.82854246]
[1734943275663,12.82854246,183.42,183.35,12.82854246]
[1734943275949,12.82854246,183.42,183.31,2.20008728]
[1734943276156,12.82854246,183.4,183.32,12.82854246]
[1734943276447,12.82854246,183.39,183.31,12.82854246]
[1734943276620,12.82854246,183.38,183.31,12.82854246]
[1734943276824,12.82854246,183.41,183.33,12.82854246]
[1734943277141,12.82854246,183.38,183.27,0.6715179]
[1734943277338,20.0,183.39,183.27,0.6715179]
[1734943277665,4.0891,183.41,183.27,0.6715179]
[1734943277666,12.82854246,183.34,183.27,0.6715179]
[1734943277864,12.82854246,183.34,183.27,13.50006036]
[1734943278160,18.94474246,183.35,183.28,12.82854246]
[1734943278822,12.82854246,183.33,183.27,0.6715179]
[1734943279025,12.82854246,183.31,183.27,0.6715179]
[1734943279299,12.82854246,183.3,183.27,0.6715179]
[1734943280140,36.60542646,183.28,183.27,0.6715179]
[1734943280652,42.85222646,183.28,183.27,1.79e-05]
[1734943280821,20.0,183.25,183.15,12.82854246]
[1734943281021,20.0,183.25,183.16,12.82854246]
[1734943281022,12.82854246,183.23,183.16,12.82854246]
[1734943281223,12.82854246,183.27,183.2,12.82854246]
[1734943281524,12.82854246,183.27,183.11,15.1615]
[1734943281525,12.82854246,183.25,183.18,12.82854246]
[1734943281730,19.07534246,183.28,183.2,12.82854246]
[1734943282035,6.2468,183.28,183.21,0.81853175]
[1734943282243,6.2468,183.28,183.22,12.82854246]
[1734943282546,6.1686,183.34,183.25,12.82854246]
[1734943282740,12.82854246,183.33,183.25,12.82854246]
[1734943283062,12.82854246,183.33,183.23,20.0]
[1734943283242,12.82854246,183.3,183.23,12.82854246]
[1734943283561,12.82854246,183.29,183.15,143.0204]
[1734943283758,12.82854246,183.29,183.22,12.82854246]
[1734943284470,12.82854246,183.28,183.21,12.82854246]
[1734943284632,12.82854246,183.26,183.19,12.82854246]
[1734943284831,12.82854246,183.24,183.16,12.82854246]
[1734943285070,12.82854246,183.27,183.2,12.82854246]
[1734943286171,12.82854246,183.27,183.19,12.82854246]
[1734943288667,12.82854246,183.27,183.2,12.82854246]
[1734943288977,12.82854246,183.26,183.19,12.82854246]
[1734943289150,12.82854246,183.25,183.18,12.82854246]
[1734943290051,12.82854246,183.26,183.19,12.82854246]
[1734943290245,12.82854246,183.26,183.11,140.36261152]
[1734943290246,30.265084,183.25,183.16,12.82854246]
[1734943290454,12.82854246,183.23,183.15,12.82854246]
[1734943290658,12.82854246,183.21,183.14,12.82854246]
[1734943290962,12.82854246,183.21,183.1,6.83133613]
[1734943290963,12.82854246,183.21,183.13,12.82854246]
[1734943291175,12.82854246,183.18,183.1,12.82854246]
[1734943291373,12.82854246,183.2,183.13,12.82854246]
[1734943292176,12.82854246,183.2,183.12,12.82854246]
[1734943294358,12.82854246,183.18,183.11,12.82854246]
[1734943295446,12.82854246,183.17,183.1,12.82854246]
[1734943295881,12.82854246,183.18,183.1,12.82854246]
[1734943296174,12.82854246,183.16,183.09,13.50006036]
[1734943296342,12.82854246,183.16,183.09,0.6715179]
[1734943296542,12.82854246,183.16,183.09,13.50006036]
[1734943298191,12.82854246,183.15,183.09,0.6715179]
[1734943298492,12.82854246,183.13,183.09,0.6715179]
[1734943298698,12.82854246,183.12,183.09,0.6715179]
[1734943298889,10.4669,183.16,183.09,0.6715179]
[1734943299065,23.776884,183.15,183.09,0.6715179]
[1734943299469,12.82854246,183.11,183.09,0.6715179]
[1734943301066,12.82854246,183.1,183.09,0.6715179]
[1734943301271,36.60542646,183.1,183.09,1.79e-05]
[1734943301863,44.31952646,183.1,183.09,1.79e-05]
[1734943302170,23.776884,183.05,182.95,12.82854246]
[1734943302378,20.0,183.06,182.96,12.82854246]
[1734943302559,12.82854246,183.05,182.98,12.82854246]
[1734943302767,12.82854246,183.04,182.97,12.82854246]
[1734943302964,12.82854246,183.03,182.96,12.82854246]
[1734943303282,12.82854246,183.02,182.95,12.82854246]
[1734943303871,4.0972,183.05,182.95,12.82854246]
[1734943304060,12.82854246,183.03,182.95,12.82854246]
[1734943304261,23.776884,183.09,182.97,12.82854246]
[1734943304262,12.82854246,183.04,182.97,12.82854246]
[1734943304574,12.82854246,183.05,182.98,12.82854246]
[1734943305167,12.82854246,183.06,182.99,12.82854246]
[1734943305368,12.82854246,183.05,182.98,12.82854246]
[1734943305994,12.82854246,183.04,182.96,20.0]
[1734943306165,12.82854246,183.05,182.98,12.82854246]
[1734943307801,12.82854246,183.04,182.96,20.0]
[1734943307974,12.82854246,183.04,182.97,12.82854246]
[1734943308188,12.82854246,183.05,182.98,12.82854246]
[1734943308376,12.82854246,183.06,182.98,12.82854246]
[1734943309391,12.82854246,183.09,183.01,12.82854246]
[1734943310189,12.82854246,183.05,182.98,12.82854246]
[1734943310409,12.82854246,183.05,182.98,56.60542646]
[1734943310695,12.82854246,183.05,182.98,32.82854246]
[1734943310909,12.82854246,183.03,182.96,12.82854246]
[1734943311200,12.82854246,183.03,182.97,23.776884]
[1734943311405,12.82854246,183.04,182.97,12.82854246]
[1734943312279,12.82854246,182.99,182.92,1.5077]
[1734943312489,12.82854246,182.97,182.91,0.6715179]
[1734943313104,4.29683446,183.01,182.91,0.6715179]
[1734943313277,12.82854246,182.93,182.91,0.6715179]
[1734943313689,12.82854246,182.92,182.91,0.6715179]
[1734943316684,12.82854246,182.95,182.91,0.6715179]
[1734943317389,12.82854246,182.94,182.91,0.6715179]
[1734943318312,12.82854246,182.93,182.91,0.6715179]
[1734943318920,12.82854246,182.94,182.91,0.6715179]
[1734943319071,12.82854246,182.95,182.91,0.6715179]
[1734943319673,12.82854246,182.98,182.91,13.50006036]
[1734943320099,12.82854246,182.97,182.91,0.6715179]
[1734943321495,12.82854246,182.96,182.91,0.6715179]
[1734943321879,12.82854246,182.95,182.91,0.6715179]
[1734943322406,4.0987,182.99,182.91,0.6715179]
[1734943322407,12.82854246,182.92,182.91,0.6715179]
[1734943323699,23.49764246,182.92,182.91,0.6715179]
[1734943330416,4.0993,182.96,182.91,0.6715179]
[1734943330714,12.82854246,182.94,182.91,0.6715179]
[1734943331017,12.82854246,182.92,182.91,0.6715179]
[1734943331698,4.0993,182.96,182.91,0.6715179]
[1734943331699,12.82854246,182.94,182.91,0.6715179]
[1734943331900,12.82854246,182.93,182.91,0.6715179]
[1734943332212,12.82854246,182.94,182.91,0.6715179]
[1734943333419,12.82854246,182.93,182.91,0.6715179]
[1734943333799,12.82854246,182.92,182.91,0.6715179]
[1734943334599,12.82854246,182.93,182.91,0.6715179]
[1734943335927,12.82854246,182.92,182.91,0.6715179]
[1734943336828,12.82854246,182.92,182.91,1.79e-05]
[1734943338325,12.82854246,182.93,182.91,1.79e-05]
[1734943338910,12.82854246,182.92,182.91,1.79e-05]
[1734943339627,12.82854246,182.95,182.91,1.79e-05]
[1734943340828,12.82854246,182.94,182.91,1.79e-05]
[1734943344138,12.82854246,182.92,182.91,1.79e-05]
[1734943345200,16.92864246,182.92,182.91,1.79e-05]
[1734943350204,40.70552646,182.92,182.91,1.79e-05]
[1734943350405,20.0,182.88,182.78,20.49804246]
[1734943350649,12.82854246,182.84,182.78,20.49804246]
[1734943350850,12.82854246,182.84,182.78,7.6695]
[1734943351051,12.82854246,182.86,182.79,12.82854246]
[1734943351349,12.82854246,182.85,182.78,20.49804246]
[1734943351549,12.82854246,182.84,182.78,7.6695]
[1734943351749,12.82854246,182.83,182.78,7.6695]
[1734943351962,12.82854246,182.82,182.78,1.5681]
[1734943352121,12.82854246,182.81,182.78,1.5681]
[1734943352452,12.82854246,182.79,182.74,7.8825]
[1734943352660,12.82854246,182.8,182.74,7.8825]
[1734943352949,12.82854246,182.81,182.74,7.8825]
[1734943353332,12.82854246,182.81,182.74,20.71104246]
[1734943353854,12.82854246,182.81,182.74,7.8825]
[1734943354245,12.82854246,182.81,182.75,12.82854246]
[1734943354747,12.82854246,182.81,182.74,7.8825]
[1734943354748,12.82854246,182.83,182.76,12.82854246]
[1734943355265,12.82854246,182.83,182.77,23.776884]
[1734943355861,12.82854246,182.81,182.74,7.8825]
[1734943356030,12.82854246,182.81,182.74,20.71104246]
[1734943358155,12.82854246,182.79,182.74,7.8825]
[1734943358355,12.82854246,182.8,182.74,7.8825]
[1734943361256,8.2026,182.87,182.74,7.8825]
[1734943361257,12.82854246,182.81,182.74,20.71104246]
[1734943361428,12.82854246,182.84,182.76,12.82854246]
[1734943361628,12.82854246,182.82,182.75,12.82854246]
[1734943361956,12.82854246,182.83,182.76,12.82854246]
[1734943362163,12.82854246,182.82,182.75,36.60542646]
[1734943362349,12.82854246,182.83,182.76,12.82854246]
[1734943362959,12.82854246,182.82,182.75,36.60542646]
[1734943363762,12.82854246,182.83,182.75,36.60542646]
[1734943364263,12.82854246,182.82,182.75,36.60542646]
[1734943364556,12.82854246,182.83,182.75,36.60542646]
[1734943364758,12.82854246,182.83,182.76,12.82854246]
[1734943364933,12.82854246,182.82,182.75,36.60542646]
[1734943366664,12.82854246,182.83,182.76,12.82854246]
[1734943366833,12.82854246,182.84,182.77,12.82854246]
[1734943367233,12.82854246,182.83,182.76,12.82854246]
[1734943367748,12.82854246,182.82,182.75,36.60542646]
[1734943367963,12.82854246,182.81,182.75,23.776884]
[1734943368273,8.28620158,182.81,182.75,23.776884]
[1734943368865,8.28620158,182.82,182.75,32.06308558]
[1734943369068,8.28620158,182.81,182.75,23.776884]
[1734943369569,8.28620158,182.82,182.75,32.06308558]
[1734943369861,8.28620158,182.81,182.74,7.8825]
[1734943370039,8.28620158,182.8,182.74,7.8825]
[1734943370733,8.28620158,182.8,182.74,1.5808]
[1734943371351,8.28620158,182.79,182.74,1.5808]
[1734943371656,8.28620158,182.78,182.74,1.5808]
[1734943373176,8.28620158,182.76,182.74,1.5808]
[1734943373376,8.28620158,182.76,182.73,0.6715179]
[1734943373757,4.1021,182.83,182.74,23.776884]
[1734943374079,20.0,182.86,182.76,8.28620158]
[1734943374287,8.28620158,182.81,182.74,32.06308558]
[1734943375161,8.28620158,182.82,182.75,8.28620158]
[1734943375585,8.28620158,182.81,182.74,8.28620158]
[1734943376450,8.28620158,182.81,182.73,20.6715179]
[1734943376658,8.28620158,182.79,182.73,0.6715179]
[1734943377550,8.28620158,182.78,182.73,0.6715179]
[1734943377781,8.28620158,182.77,182.73,0.6715179]
[1734943378685,12.3037,182.87,182.73,0.6715179]
[1734943378686,8.28620158,182.75,182.73,0.6715179]
[1734943378866,8.28620158,182.74,182.73,0.6715179]
[1734943382471,4.1041,182.75,182.73,0.6715179]
[1734943382776,8.28620158,182.74,182.73,0.6715179]
[1734943384973,20.0,182.76,182.73,0.6715179]
[1734943385287,8.28620158,182.8,182.73,8.95771948]
[1734943385493,8.28620158,182.84,182.77,1.5757]
[1734943385697,15.9535,182.91,182.77,1.5757]
[1734943386096,8.28620158,182.85,182.78,8.28620158]
[1734943386894,8.28620158,182.82,182.77,1.5757]
[1734943387312,8.28620158,182.84,182.77,9.86190158]
[1734943387480,4.1017,182.86,182.78,8.28620158]
[1734943387687,8.28620158,182.87,182.8,8.28620158]
[1734943388275,12.9389902,182.87,182.79,12.9389902]
[1734943388501,12.9389902,182.87,182.8,12.9389902]
[1734943388712,12.9389902,182.86,182.79,12.9389902]
[1734943389119,12.9389902,182.88,182.81,36.7158742]
[1734943389286,12.9389902,182.89,182.82,12.9389902]
[1734943389614,12.9389902,182.9,182.83,12.9389902]
[1734943390204,12.9389902,182.9,182.84,1.5469]
[1734943390381,12.9389902,182.91,182.84,1.5469]
[1734943390590,12.9389902,182.9,182.84,1.5469]
[1734943390788,12.9389902,182.92,182.85,12.9389902]
[1734943390993,12.9389902,182.91,182.84,14.4858902]
[1734943391203,12.9389902,182.92,182.84,14.4858902]
[1734943391441,12.9389902,182.92,182.85,12.9389902]
[1734943391626,12.9389902,182.91,182.84,14.4858902]
[1734943391794,12.9389902,182.89,182.84,1.5469]
[1734943391998,12.9389902,182.88,182.84,1.5469]
[1734943392684,12.9389902,182.9,182.84,1.5469]
[1734943393017,4.0997,182.94,182.84,1.5469]
[1734943393018,12.9389902,182.92,182.84,14.4858902]
[1734943393517,12.9389902,182.92,182.85,12.9389902]
[1734943394934,12.9389902,182.93,182.85,12.9389902]
[1734943395304,12.9389902,182.93,182.86,23.776884]
[1734943395629,12.9389902,182.92,182.86,23.776884]
[1734943396519,12.9389902,182.92,182.85,23.776884]
[1734943397222,12.9389902,182.92,182.85,36.7158742]
[1734943398101,12.9389902,182.9,182.84,1.5469]
[1734943398621,12.9389902,182.93,182.86,12.9389902]
[1734943399120,12.9389902,182.97,182.9,12.9389902]
[1734943399325,12.9389902,182.98,182.91,12.9389902]
[1734943399492,12.9389902,182.98,182.91,19.3972902]
[1734943399824,12.9389902,182.99,182.92,12.9389902]
[1734943400619,12.9389902,182.98,182.91,19.3972902]
[1734943400919,12.9389902,182.97,182.91,6.4583]
[1734943401122,12.9389902,182.98,182.91,19.3972902]
[1734943402008,12.9389902,182.94,182.89,1.5392]
[1734943402206,12.9389902,182.93,182.89,1.5392]
[1734943402717,12.9389902,182.92,182.89,1.5392]
[1734943403199,12.9389902,182.93,182.89,1.5392]
[1734943404024,12.9389902,182.95,182.89,1.5392]
[1734943405331,12.9389902,182.97,182.9,12.9389902]
[1734943405495,12.9389902,182.98,182.9,12.9389902]
[1734943405695,12.9389902,182.98,182.91,12.9389902]
[1734943405891,4.0985,183.0,182.91,12.9389902]
[1734943406096,12.9389902,182.99,182.91,12.9389902]
[1734943406322,12.9389902,182.99,182.92,12.9389902]
[1734943406523,12.9389902,183.0,182.93,12.9389902]
[1734943407009,12.9389902,183.0,182.93,19.4659902]
[1734943407209,12.9389902,183.01,182.94,12.9389902]
[1734943408626,12.9389902,182.99,182.93,6.527]
[1734943409228,12.9389902,182.98,182.93,6.527]
[1734943410020,12.9389902,182.98,182.91,12.9389902]
[1734943410328,12.9389902,182.96,182.89,20.9291902]
[1734943410622,12.9389902,182.97,182.9,36.7158742]
[1734943410829,12.9389902,182.98,182.91,12.9389902]
[1734943411032,12.9389902,182.99,182.91,12.9389902]
[1734943411629,12.9389902,182.99,182.92,12.9389902]
[1734943413721,12.9389902,183.0,182.93,12.9389902]
[1734943414231,12.9389902,183.01,182.94,23.776884]
[1734943415239,12.9389902,183.04,182.97,12.9389902]
[1734943415706,12.9389902,183.06,182.99,12.9389902]
[1734943416130,12.9389902,183.08,183.0,12.9389902]
[1734943417125,12.9389902,183.07,183.0,12.9389902]
[1734943417322,12.9389902,183.03,182.98,6.0429]
[1734943417630,12.9389902,183.02,182.98,6.0429]
[1734943418136,12.9389902,183.03,182.98,6.0429]
[1734943418337,12.9389902,183.02,182.95,14.5736902]
[1734943418512,12.9389902,183.01,182.95,1.6347]
[1734943421141,12.9389902,183.02,182.95,14.5736902]
[1734943422647,12.9389902,183.03,182.96,12.9389902]
[1734943423544,12.9389902,183.01,182.95,1.6347]
[1734943423755,12.9389902,182.98,182.95,1.6347]
[1734943424223,12.9389902,183.02,182.95,14.5736902]
[1734943424545,4.0966,183.08,182.97,6.4756]
[1734943424738,8.59394099,183.15,182.98,0.81946892]
[1734943424924,4.0958,183.12,183.02,1.5122]
[1734943425544,12.9389902,183.1,183.03,12.9389902]
[1734943425750,17.0347902,183.12,183.05,12.9389902]
[1734943426843,12.9389902,183.11,183.04,12.9389902]
[1734943429249,12.9389902,183.08,183.02,1.5122]
[1734943429852,12.9389902,183.09,183.02,14.4511902]
[1734943432152,12.9389902,183.06,183.02,1.5122]
[1734943433434,12.9389902,183.07,183.02,1.5122]
[1734943433743,12.9389902,183.06,183.02,1.5122]
[1734943434256,12.9389902,183.07,183.02,1.5122]
[1734943436860,12.9389902,183.06,183.02,1.5122]
[1734943442663,12.9389902,183.07,183.02,1.5122]
[1734943443453,12.9389902,183.06,183.02,1.5122]
[1734943444434,12.9389902,183.07,183.02,1.5122]
[1734943445274,4.0957,183.12,183.04,12.9389902]
[1734943445572,12.9389902,183.13,183.06,12.9389902]
[1734943445755,4.095,183.15,183.06,12.9389902]
[1734943445756,12.9389902,183.14,183.07,12.9389902]
[1734943445938,9.76806541,183.2,183.11,12.9389902]
[1734943446139,9.76806541,183.2,183.15,12.9389902]
[1734943446337,12.9389902,183.22,183.16,1.5392]
[1734943446953,12.9389902,183.23,183.16,14.4781902]
[1734943447688,4.0922,183.28,183.18,12.9389902]
[1734943447689,12.9389902,183.25,183.18,12.9389902]
[1734943447971,12.9389902,183.23,183.16,14.4781902]
[1734943449873,12.9389902,183.24,183.17,36.7158742]
[1734943450386,12.9389902,183.26,183.19,36.7158742]
[1734943450556,12.9389902,183.29,183.21,12.9389902]
[1734943450762,12.9389902,183.29,183.22,12.9389902]
[1734943451170,12.9389902,183.29,183.21,12.9389902]
[1734943451650,12.9389902,183.29,183.22,36.7158742]
[1734943452163,12.9389902,183.28,183.21,12.9389902]
[1734943452479,12.9389902,183.27,183.2,12.9389902]
[1734943452643,12.9389902,183.27,183.21,23.776884]
[1734943453055,12.9389902,183.26,183.16,2.35780299]
[1734943453258,12.9389902,183.22,183.16,1.5392]
[1734943453463,12.9389902,183.21,183.16,1.5392]
[1734943453669,12.9389902,183.19,183.16,1.5392]
[1734943454059,12.9389902,183.2,183.16,1.5392]
[1734943454378,12.9389902,183.19,183.12,14.5158902]
[1734943454768,12.9389902,183.19,183.12,1.5769]
[1734943454981,12.9389902,183.18,183.12,1.5769]
[1734943455182,12.9389902,183.19,183.12,14.5158902]
[1734943455493,12.9389902,183.2,183.13,12.9389902]
[1734943456985,12.9389902,183.21,183.13,12.9389902]
[1734943457888,12.9389902,183.2,183.13,12.9389902]
[1734943458178,12.9389902,183.18,183.12,1.5769]
[1734943458984,12.9389902,183.19,183.12,1.5769]
[1734943459684,12.9389902,183.19,183.12,14.5158902]
[1734943460491,12.9389902,183.22,183.14,12.9389902]
[1734943460658,12.9389902,183.24,183.16,12.9389902]
[1734943460861,12.9389902,183.26,183.18,12.9389902]
[1734943461058,4.0918,183.29,183.2,12.9389902]
[1734943461271,12.9389902,183.3,183.22,12.9389902]
[1734943461472,12.9389902,183.3,183.22,14.4534902]
[1734943461658,12.9389902,183.3,183.23,12.9389902]
[1734943461990,12.9389902,183.3,183.22,14.4534902]
[1734943462375,12.9389902,183.3,183.23,12.9389902]
[1734943462680,12.9389902,183.3,183.22,14.4534902]
[1734943462991,12.9389902,183.3,183.23,12.9389902]
[1734943463305,12.9389902,183.29,183.22,1.5145]
[1734943463585,12.9389902,183.28,183.22,1.5145]
[1734943466111,12.9389902,183.27,183.17,1.5813]
[1734943466266,12.9389902,183.25,183.17,14.5202902]
[1734943467290,12.9389902,183.23,183.17,1.5813]
[1734943468196,12.9389902,183.22,183.17,1.5813]
[1734943469197,12.9389902,183.24,183.17,1.5813]
[1734943469401,4.0926,183.26,183.2,12.9389902]
[1734943470610,12.9389902,183.26,183.19,12.9389902]
[1734943471299,12.9389902,183.26,183.18,12.9389902]
[1734943471878,12.9389902,183.25,183.18,12.9389902]
[1734943472291,12.9389902,183.23,183.17,1.5813]
[1734943473305,12.9389902,183.24,183.17,1.5813]
[1734943474307,12.9389902,183.23,183.17,1.5813]
[1734943475303,17.0320902,183.24,183.17,1.5813]
[1734943476412,12.9389902,183.22,183.17,1.5813]
[1734943484123,12.9389902,183.24,183.17,14.5202902]
[1734943484307,17.0315902,183.26,183.18,12.9389902]
[1734943485124,4.0926,183.26,183.19,12.9389902]
[1734943485421,12.9389902,183.25,183.18,12.9389902]
[1734943485613,12.9389902,183.24,183.17,14.5202902]
[1734943486229,12.9389902,183.24,183.17,1.5813]
[1734943486440,12.9389902,183.25,183.17,14.5202902]
[1734943486614,12.9389902,183.25,183.18,12.9389902]
[1734943487135,17.0315902,183.26,183.18,12.9389902]
[1734943487518,12.9389902,183.25,183.18,12.9389902]
[1734943488332,12.9389902,183.25,183.17,14.5202902]
[1734943488543,12.9389902,183.24,183.17,1.5813]
[1734943488751,12.9389902,183.23,183.17,1.5813]
[1734943489344,17.0320902,183.24,183.17,1.5813]
[1734943491337,12.9389902,183.22,183.17,1.5813]
[1734943493446,12.9389902,183.19,183.12,7.9806]
[1734943493930,12.9389902,183.18,183.12,7.9806]
[1734943494122,12.9389902,183.19,183.12,7.9806]
[1734943497839,12.9389902,183.2,183.13,12.9389902]